bitfinex/quotes_BTCUSD_20250714
["timestamp","ask_amount","ask_price","bid_price","bid_amount"]
[1752478762446,0.09761036,122950.0,122940.0,0.15604]
[1752478762591,0.26027811,122950.0,122940.0,0.15619232]
[1752478762815,0.06507769,122950.0,122940.0,0.00015232]
[1752478763001,0.001,122950.0,122940.0,0.27356519]
[1752478763202,0.00813246,122960.0,122940.0,0.42821175]
[1752478763502,0.00813246,122960.0,122940.0,0.08444943]
[1752478763503,0.06507769,122950.0,122940.0,0.08444943]
[1752478763739,0.09761003,122950.0,122940.0,0.00015232]
[1752478763945,0.24401188,122950.0,122940.0,0.00015232]
[1752478764144,0.24401188,122950.0,122940.0,0.15687232]
[1752478764424,0.00813213,122960.0,122940.0,0.25526431]
[1752478764570,0.41626445,122960.0,122940.0,0.42817181]
[1752478764775,0.19518421,122960.0,122950.0,0.08134711]
[1752478765029,0.06507769,122970.0,122950.0,0.24600043]
[1752478765030,0.16264145,122970.0,122950.0,0.24600043]
[1752478765194,0.00813219,122960.0,122950.0,0.24664043]
[1752478765410,0.00813213,122960.0,122950.0,0.23850711]
[1752478765664,0.02439685,122960.0,122950.0,0.23850711]
[1752478765864,0.02539685,122960.0,122950.0,0.08134711]
[1752478765986,0.02439685,122960.0,122950.0,0.08134711]
[1752478766198,0.0325295,122960.0,122950.0,0.08134711]
[1752478766427,0.0345295,122960.0,122950.0,0.23842711]
[1752478766634,0.03452923,122960.0,122950.0,0.08134711]
[1752478766831,0.00813305,122950.0,122940.0,0.00015232]
[1752478767164,0.00813285,122950.0,122940.0,0.24655334]
[1752478767362,0.02639737,122960.0,122940.0,0.41218373]
[1752478767573,0.01826472,122960.0,122940.0,0.42031751]
[1752478767794,0.01826458,122960.0,122950.0,0.00813332]
[1752478768011,0.01013219,122960.0,122950.0,0.16481332]
[1752478768235,0.19718514,122960.0,122940.0,0.08444943]
[1752478768456,0.17893405,122950.0,122940.0,0.15683232]
[1752478768668,0.00813305,122950.0,122940.0,0.15671232]
[1752478768908,0.01826458,122960.0,122940.0,0.2715296]
[1752478769148,0.01013219,122960.0,122950.0,0.10056367]
[1752478769340,0.01826451,122960.0,122950.0,0.09243049]
[1752478769488,0.01826451,122960.0,122950.0,0.24879049]
[1752478769687,0.01826451,122960.0,122950.0,0.09243049]
[1752478769935,0.01826451,122960.0,122950.0,0.24871049]
[1752478770276,0.03452949,122960.0,122950.0,0.08429711]
[1752478770415,0.17080107,122950.0,122940.0,0.00015232]
[1752478770812,0.00813332,122950.0,122940.0,0.15627232]
[1752478771012,0.01626644,122950.0,122940.0,0.00015232]
[1752478771213,0.02439929,122950.0,122940.0,0.1643263]
[1752478771549,0.02439936,122950.0,122940.0,0.16432636]
[1752478771770,0.24401181,122950.0,122940.0,0.00015232]
[1752478771982,0.35809892,122950.0,122940.0,0.00015232]
[1752478772142,0.00813484,122920.0,122910.0,0.1789924]
[1752478772365,0.01626855,122930.0,122920.0,0.0081353]
[1752478772621,0.16266775,122950.0,122920.0,0.2551396]
[1752478772822,0.02440134,122940.0,122930.0,0.17082892]
[1752478773028,0.4,122940.0,122930.0,0.27952922]
[1752478773398,0.40813358,122940.0,122930.0,0.27139498]
[1752478773565,0.17894887,122940.0,122920.0,0.16270701]
[1752478773787,0.18709779,122930.0,122920.0,0.08134711]
[1752478773989,0.42440392,122930.0,122920.0,0.0081353]
[1752478774231,0.42440392,122930.0,122920.0,0.1554]
[1752478774429,0.18711364,122920.0,122900.0,0.00015246]
[1752478774651,0.0244071,122910.0,122900.0,0.08444957]
[1752478774781,0.17899228,122910.0,122900.0,0.00015246]
[1752478775725,0.17085658,122910.0,122900.0,0.00215246]
[1752478775929,0.17085658,122910.0,122900.0,0.00015246]
[1752478776360,0.17085658,122910.0,122900.0,0.00115246]
[1752478776774,0.32657658,122910.0,122900.0,0.00115246]
[1752478776978,0.00813444,122930.0,122910.0,0.00813583]
[1752478777144,0.01626987,122920.0,122910.0,0.18222267]
[1752478777341,0.01626987,122920.0,122910.0,0.19849433]
[1752478777544,0.03254008,122920.0,122910.0,0.18222267]
[1752478777743,0.03254015,122920.0,122910.0,0.1903585]
[1752478777986,0.03254015,122920.0,122910.0,0.00813603]
[1752478778161,0.02440491,122920.0,122910.0,0.17085671]
[1752478778467,0.03254001,122920.0,122910.0,0.17085671]
[1752478778678,0.02440531,122920.0,122900.0,0.42420226]
[1752478778882,0.00813543,122910.0,122900.0,0.41929616]
[1752478779108,0.00813557,122910.0,122900.0,0.25560013]
[1752478779260,0.03254293,122910.0,122900.0,0.08472957]
[1752478779636,0.19526407,122910.0,122900.0,0.00338246]
[1752478779790,0.01627173,122910.0,122900.0,0.00015246]
[1752478780091,0.17899261,122910.0,122900.0,0.00015246]
[1752478780828,0.0162712,122910.0,122900.0,0.17102249]
[1752478780997,0.02440683,122910.0,122900.0,0.16288606]
[1752478781233,0.03554273,122910.0,122900.0,0.00828909]
[1752478781382,0.03554273,122910.0,122900.0,0.00015246]
[1752478781383,0.19012791,122910.0,122900.0,0.00015246]
[1752478781592,0.18199234,122910.0,122900.0,0.00015246]
[1752478781796,0.80500864,122910.0,122900.0,0.00015246]
[1752478781994,0.97802387,122910.0,122900.0,0.00015246]
[1752478782174,0.16277366,122870.0,122860.0,0.00041]
[1752478782380,0.17091221,122870.0,122860.0,0.00041]
[1752478782800,0.00813821,122870.0,122860.0,0.00041]
[1752478783030,0.18695326,122870.0,122860.0,0.00041]
[1752478783258,0.17905056,122870.0,122860.0,0.00041]
[1752478783384,0.33352447,122870.0,122860.0,0.00041]
[1752478783791,0.32538612,122870.0,122860.0,0.00041]
[1752478784030,0.00829239,122870.0,122860.0,0.01668861]
[1752478784228,0.00015391,122870.0,122860.0,0.18270552]
[1752478784550,0.00115391,122870.0,122860.0,0.28033059]
[1752478784920,0.00115391,122870.0,122860.0,0.28846953]
[1752478785315,0.00115391,122870.0,122860.0,0.00041]
[1752478785316,0.18020447,122870.0,122860.0,0.00041]
[1752478786902,0.34226308,122870.0,122860.0,0.00041]
[1752478787104,0.33412473,122870.0,122860.0,0.00041]
[1752478787763,0.18020473,122870.0,122860.0,0.00041]
[1752478788226,0.18020473,122870.0,122860.0,0.17133625]
[1752478788227,0.02556914,122870.0,122860.0,0.17133625]
[1752478788488,0.02556914,122870.0,122860.0,0.00854934]
[1752478788705,0.02556914,122870.0,122860.0,0.01668848]
[1752478788968,0.18020459,122870.0,122860.0,0.00041]
[1752478789809,0.33368459,122870.0,122860.0,0.00041]
[1752478790225,0.18020459,122870.0,122860.0,0.00041]
[1752478790426,0.33356459,122870.0,122860.0,0.00041]
[1752478791378,0.33320459,122870.0,122860.0,0.00041]
[1752478792415,0.18020459,122870.0,122860.0,0.00041]
[1752478792622,0.33308459,122870.0,122860.0,0.00041]
[1752478793048,0.76621265,122870.0,122860.0,0.00041]
[1752478793270,0.61333265,122870.0,122860.0,0.00041]
[1752478793473,0.84821976,122870.0,122860.0,0.00041]
[1752478793611,0.88111976,122870.0,122860.0,0.00041]
[1752478793819,1.3348371,122870.0,122860.0,0.00041]
[1752478794033,1.25331976,122870.0,122860.0,0.00041]
[1752478794624,1.22091976,122870.0,122860.0,0.00041]
[1752478795037,1.22091976,122870.0,122860.0,0.00031993]
[1752478795278,1.21967976,122870.0,122860.0,0.00031993]
[1752478795490,1.22367976,122870.0,122860.0,0.00031993]
[1752478795915,0.0081406,122840.0,122820.0,0.17461158]
[1752478796090,0.1682806,122840.0,122830.0,0.19047992]
[1752478796292,0.02442292,122830.0,122820.0,0.18275277]
[1752478796597,0.41628173,122830.0,122820.0,0.18270234]
[1752478796798,0.41628159,122830.0,122820.0,0.18270234]
[1752478797002,0.58724992,122830.0,122820.0,0.00357957]
[1752478797202,0.57910899,122830.0,122820.0,0.00034957]
[1752478797611,0.57926281,122830.0,122820.0,0.16318949]
[1752478797819,0.57926281,122830.0,122820.0,0.18147328]
[1752478798018,0.57926281,122830.0,122820.0,0.00034957]
[1752478798230,0.56298049,122830.0,122820.0,0.00034957]
[1752478798436,0.56398049,122830.0,122820.0,0.00034957]
[1752478799205,0.40929482,122830.0,122820.0,0.18270301]
[1752478799425,0.42557675,122830.0,122820.0,0.18270314]
[1752478799626,0.40115382,122830.0,122820.0,0.17456142]
[1752478799834,0.41743548,122830.0,122820.0,0.19084468]
[1752478800033,0.40929455,122830.0,122820.0,0.19084468]
[1752478800237,0.40115382,122830.0,122820.0,0.19084468]
[1752478800495,0.00115382,122830.0,122820.0,0.45605179]
[1752478800635,0.00115382,122830.0,122820.0,0.33559179]
[1752478800835,0.00064179,122830.0,122820.0,0.76871985]
[1752478801037,0.00064179,122830.0,122820.0,1.25979985]
[1752478801246,0.00813888,122860.0,122850.0,0.19535879]
[1752478801462,0.33005275,122870.0,122860.0,0.17906539]
[1752478801647,0.17905275,122870.0,122860.0,0.17906539]
[1752478801845,0.00813841,122870.0,122860.0,0.18229513]
[1752478802091,0.18718916,122870.0,122860.0,0.17415625]
[1752478802385,0.03255418,122870.0,122860.0,0.19857374]
[1752478802604,0.19532784,122870.0,122860.0,0.19857387]
[1752478802827,0.19548072,122870.0,122860.0,0.19857387]
[1752478803047,0.00015288,122870.0,122860.0,0.2880596]
[1752478803256,0.00015288,122870.0,122860.0,0.78368766]
[1752478803658,0.04,122900.0,122890.0,0.18715844]
[1752478803871,0.04,122900.0,122890.0,0.57293555]
[1752478804273,0.0481361,122900.0,122890.0,0.57293555]
[1752478804493,0.04,122900.0,122890.0,0.57293555]
[1752478804914,0.04,122900.0,122890.0,0.63513555]
[1752478805128,0.04,122900.0,122890.0,0.60483555]
[1752478806161,0.04,122900.0,122890.0,0.63513555]
[1752478806578,0.04,122900.0,122890.0,0.63144449]
[1752478806787,0.0481361,122900.0,122890.0,0.60114449]
[1752478807201,0.22714301,122900.0,122890.0,0.30351]
[1752478807407,0.06440908,122900.0,122890.0,0.49066876]
[1752478807611,0.06840908,122900.0,122890.0,0.19038876]
[1752478807819,0.05213616,122900.0,122890.0,0.35626267]
[1752478808038,0.01627245,122900.0,122890.0,0.31626267]
[1752478808475,0.03254537,122900.0,122890.0,0.18269717]
[1752478808671,0.04268206,122900.0,122890.0,0.32440028]
[1752478808923,0.18100718,122900.0,122890.0,0.15014902]
[1752478809122,0.18100718,122900.0,122890.0,0.3160634]
[1752478809326,0.18100718,122900.0,122890.0,0.30792631]
[1752478809536,0.17287062,122900.0,122880.0,0.18716215]
[1752478809737,0.01627517,122880.0,122870.0,0.08134711]
[1752478809947,0.0101361,122900.0,122890.0,0.01627438]
[1752478810154,0.002,122900.0,122890.0,0.41993988]
[1752478810391,0.1627175,122970.0,122920.0,0.16269126]
[1752478810608,0.0001534,122920.0,122910.0,0.20375664]
[1752478810809,0.17913125,122920.0,122910.0,0.31527068]
[1752478811014,0.0245587,122920.0,122910.0,0.33967817]
[1752478811429,0.01642328,122920.0,122910.0,0.27980085]
[1752478811647,0.18726636,122920.0,122910.0,0.40467382]
[1752478811852,0.00828817,122920.0,122910.0,0.42912099]
[1752478812062,0.02455852,122920.0,122910.0,0.23066711]
[1752478812264,0.02455852,122920.0,122890.0,0.01946418]
[1752478812265,0.00813623,122900.0,122890.0,0.01946418]
[1752478812433,0.01627146,122910.0,122900.0,0.17087029]
[1752478812647,0.01642368,122920.0,122910.0,0.195264]
[1752478812873,0.01642321,122920.0,122910.0,0.27166554]
[1752478813099,0.03269349,122920.0,122910.0,0.27166554]
[1752478813324,0.43269342,122920.0,122910.0,0.27980111]
[1752478814054,0.00813576,122910.0,122900.0,0.31197393]
[1752478814236,0.19526394,122910.0,122900.0,0.23377711]
[1752478814440,0.18512837,122910.0,122900.0,0.2419138]
[1752478814642,0.17899195,122910.0,122900.0,0.4127841]
[1752478814883,0.19526367,122910.0,122900.0,0.41278416]
[1752478815005,0.19526361,122910.0,122900.0,0.40464767]
[1752478815208,0.4001534,122920.0,122910.0,0.1789924]
[1752478815449,0.4001534,122920.0,122910.0,0.27166508]
[1752478815651,0.58726615,122920.0,122910.0,0.08453711]
[1752478815854,0.57913125,122920.0,122910.0,0.08134711]
[1752478816087,0.17085658,122910.0,122900.0,0.44694]
[1752478816216,0.18712844,122910.0,122900.0,0.53642374]
[1752478816412,0.17899241,122910.0,122900.0,0.5364238]
[1752478816627,0.16286085,122920.0,122900.0,0.73183878]
[1752478816824,0.00813543,122910.0,122900.0,0.72356681]
[1752478817050,0.4001534,122920.0,122910.0,0.1789924]
[1752478817246,0.58726576,122920.0,122910.0,0.25728554]
[1752478817466,0.58726576,122920.0,122910.0,0.26047543]
[1752478817668,0.58726569,122920.0,122910.0,0.27674689]
[1752478817880,0.58726569,122920.0,122910.0,0.27980084]
[1752478818079,0.58826649,122920.0,122910.0,0.08642879]
[1752478819115,0.58013139,122920.0,122910.0,0.08642879]
[1752478819321,0.58013139,122920.0,122910.0,0.38212879]
[1752478820330,0.58013139,122920.0,122910.0,0.30078168]
[1752478820511,0.58013139,122920.0,122910.0,0.44862168]
[1752478820718,0.58013139,122920.0,122910.0,0.44854168]
[1752478821735,0.58013139,122920.0,122910.0,0.30078168]
[1752478821937,0.58013139,122920.0,122910.0,0.44830168]
[1752478822901,1.01325945,122920.0,122910.0,0.30078168]
[1752478823106,0.61325945,122920.0,122910.0,0.30078168]
[1752478823308,0.76053945,122920.0,122910.0,0.30078168]
[1752478823647,0.61325945,122920.0,122910.0,0.30078168]
[1752478823814,0.61622945,122920.0,122910.0,0.30078168]
[1752478824017,0.76338945,122920.0,122910.0,0.30078168]
[1752478824257,0.76330945,122920.0,122910.0,0.30078168]
[1752478824659,0.61622945,122920.0,122910.0,0.30078168]
[1752478824837,0.76326945,122920.0,122910.0,0.30078168]
[1752478825053,0.61622945,122920.0,122910.0,0.30078168]
[1752478825255,0.61622945,122920.0,122910.0,0.00508168]
[1752478825256,0.33006139,122920.0,122910.0,0.00508168]
[1752478825479,0.76318945,122920.0,122910.0,0.00499334]
[1752478825873,0.87567656,122920.0,122910.0,0.00499334]
[1752478826483,0.17902141,122890.0,122880.0,0.44246]
[1752478826889,0.17088439,122890.0,122880.0,0.44237722]
[1752478827968,0.17088439,122890.0,122880.0,0.29661722]
[1752478828614,0.60401245,122890.0,122880.0,0.29661722]
[1752478829010,0.60401245,122890.0,122880.0,0.001]
[1752478829281,0.4,122900.0,122890.0,0.17893555]
[1752478829502,0.01627245,122900.0,122890.0,0.26347273]
[1752478829729,0.02440894,122900.0,122890.0,0.40959273]
[1752478829941,0.01627245,122900.0,122890.0,0.41772962]
[1752478830152,0.1790135,122910.0,122900.0,0.17900692]
[1752478830344,0.00813543,122910.0,122900.0,0.42585642]
[1752478830582,0.17099589,122920.0,122900.0,0.41771986]
[1752478830809,0.17099589,122920.0,122910.0,0.26352951]
[1752478830810,0.01642314,122920.0,122910.0,0.26352951]
[1752478831013,0.02455824,122920.0,122910.0,0.40948951]
[1752478831235,0.03269341,122920.0,122910.0,0.40948951]
[1752478831443,0.0001534,122920.0,122910.0,0.6291823]
[1752478831669,0.0011534,122920.0,122910.0,0.7750223]
[1752478831876,0.0011534,122920.0,122910.0,0.6291823]
[1752478831992,0.0011534,122920.0,122910.0,0.7750223]
[1752478832204,0.00928817,122920.0,122910.0,0.61291097]
[1752478832403,0.18826576,122920.0,122910.0,0.7130027]
[1752478832690,0.196401,122920.0,122910.0,0.72927403]
[1752478832866,0.01742314,122920.0,122910.0,0.58355364]
[1752478833071,0.00928817,122920.0,122910.0,0.72919364]
[1752478833276,0.01742314,122920.0,122910.0,0.57541807]
[1752478833479,0.02555824,122920.0,122910.0,0.58355364]
[1752478833663,0.19640093,122920.0,122910.0,0.70466673]
[1752478833869,0.19640093,122920.0,122910.0,0.71280236]
[1752478834206,0.18826569,122920.0,122910.0,0.72093806]
[1752478834404,0.62139428,122920.0,122910.0,0.55101104]
[1752478834630,0.17913092,122920.0,122910.0,0.70945283]
[1752478834780,0.18926616,122920.0,122910.0,0.72572416]
[1752478834983,0.58926616,122920.0,122910.0,0.71758853]
[1752478835154,0.58726616,122920.0,122910.0,0.70945283]
[1752478835360,0.58826616,122920.0,122910.0,0.71758853]
[1752478835776,0.58826616,122920.0,122910.0,0.70945283]
[1752478836230,0.59640153,122920.0,122910.0,0.70945283]
[1752478836442,0.58826616,122920.0,122910.0,0.70945283]
[1752478836646,0.59640146,122920.0,122910.0,0.37696433]
[1752478836851,0.58013139,122920.0,122910.0,0.44057722]
[1752478837058,0.58013113,122920.0,122910.0,0.62770552]
[1752478837298,0.41742328,122920.0,122910.0,0.63908115]
[1752478837534,0.59640113,122920.0,122910.0,0.47784976]
[1752478837748,0.59640113,122920.0,122910.0,0.63090566]
[1752478837964,0.0011534,122920.0,122910.0,0.24730779]
[1752478838210,0.18013113,122920.0,122910.0,0.23752307]
[1752478838441,0.1882665,122920.0,122910.0,0.08458711]
[1752478838910,0.01742328,122920.0,122910.0,0.42449111]
[1752478839581,0.01726056,122920.0,122910.0,0.28493209]
[1752478839786,0.00099068,122920.0,122910.0,0.28493209]
[1752478839989,0.00099068,122920.0,122910.0,0.42937209]
[1752478840193,0.00099068,122920.0,122910.0,0.45949209]
[1752478840413,0.00099068,122920.0,122910.0,1.07537737]
[1752478840645,0.00099068,122920.0,122910.0,1.57431822]
[1752478840872,0.01626478,122960.0,122950.0,0.19464646]
[1752478841028,0.01626439,122960.0,122950.0,0.59407391]
[1752478841231,0.01626439,122960.0,122950.0,0.59731391]
[1752478841232,0.00813213,122960.0,122950.0,0.59731391]
[1752478841639,0.17891957,122960.0,122950.0,0.53769584]
[1752478841838,0.17891957,122960.0,122950.0,0.08642809]
[1752478842048,0.17891957,122960.0,122950.0,0.00508098]
[1752478842248,0.61625763,122960.0,122950.0,0.00508098]
[1752478843328,0.17991957,122960.0,122950.0,0.00508098]
[1752478843534,0.18312957,122960.0,122950.0,0.00508098]
[1752478844383,0.18212957,122960.0,122950.0,0.00508098]
[1752478844844,0.18512957,122960.0,122950.0,0.00508098]
[1752478845088,0.61525763,122960.0,122950.0,0.00508098]
[1752478845305,0.72700474,122960.0,122950.0,0.00508098]
[1752478845477,0.90720474,122960.0,122950.0,0.00508098]
[1752478845685,0.76340474,122960.0,122950.0,0.00508098]
[1752478845935,0.90712474,122960.0,122950.0,0.00508098]
[1752478846346,0.18612957,122960.0,122950.0,0.00508098]
[1752478846723,0.32580957,122960.0,122950.0,0.00508098]
[1752478846960,0.61525763,122960.0,122950.0,0.00508098]
[1752478847168,0.17891957,122960.0,122950.0,0.00508098]
[1752478847356,0.17952026,122960.0,122950.0,0.00508098]
[1752478847811,0.01686541,122960.0,122950.0,0.20352147]
[1752478848032,0.01373288,122960.0,122950.0,0.42830858]
[1752478848247,0.00873288,122960.0,122950.0,0.28486773]
[1752478848498,0.01686514,122960.0,122950.0,0.42830773]
[1752478848704,0.02086514,122960.0,122950.0,0.42830763]
[1752478848919,0.01686514,122960.0,122950.0,0.42830763]
[1752478849127,0.02499746,122960.0,122950.0,0.42830763]
[1752478849336,0.18352026,122960.0,122950.0,0.08642714]
[1752478849537,0.18352026,122960.0,122950.0,0.14848003]
[1752478849973,0.18352026,122960.0,122950.0,0.14828003]
[1752478850192,0.6190094,122960.0,122950.0,0.14820003]
[1752478850400,0.01626855,122930.0,122920.0,0.19035107]
[1752478850593,0.02440306,122930.0,122920.0,0.27677843]
[1752478850842,0.03253763,122930.0,122920.0,0.41985843]
[1752478851103,0.19523184,122930.0,122920.0,0.40355018]
[1752478851342,0.16268302,122950.0,122920.0,0.25237481]
[1752478851573,0.16268302,122950.0,122920.0,0.08642736]
[1752478851574,0.17896309,122930.0,122920.0,0.08642736]
[1752478851801,0.17082878,122930.0,122920.0,0.14800025]
[1752478852237,0.4,122930.0,122920.0,0.192193]
[1752478852490,0.40813424,122930.0,122920.0,0.338313]
[1752478852701,0.40813418,122930.0,122920.0,0.339193]
[1752478852913,0.41626849,122930.0,122920.0,0.339193]
[1752478853131,0.43253723,122930.0,122920.0,0.339193]
[1752478853344,0.59523197,122930.0,122920.0,0.319683]
[1752478853570,0.58709779,122930.0,122920.0,0.34408837]
[1752478853778,0.5952325,122930.0,122920.0,0.32781837]
[1752478853984,0.57896356,122930.0,122920.0,0.14884025]
[1752478854199,0.57896356,122930.0,122920.0,0.00608025]
[1752478854448,0.4,122930.0,122920.0,0.00608025]
[1752478854660,0.58709753,122930.0,122920.0,0.18505824]
[1752478854834,0.59523204,122930.0,122920.0,0.18505824]
[1752478855059,0.587008,122930.0,122920.0,0.319483]
[1752478855260,0.587008,122930.0,122920.0,0.32761824]
[1752478855467,0.587008,122930.0,122920.0,0.319483]
[1752478855697,0.587008,122930.0,122920.0,0.33575341]
[1752478855923,0.587008,122930.0,122920.0,0.34388845]
[1752478856139,0.587008,122930.0,122920.0,0.32761824]
[1752478856380,0.59514271,122930.0,122920.0,0.319483]
[1752478856585,0.58700827,122930.0,122920.0,0.32661824]
[1752478856806,0.58800827,122930.0,122920.0,0.32661824]
[1752478857287,0.41717902,122930.0,122920.0,0.334753]
[1752478857503,0.4009102,122930.0,122920.0,0.27678011]
[1752478857708,0.4009102,122930.0,122920.0,0.41902011]
[1752478857907,0.17996263,122930.0,122920.0,0.70650243]
[1752478858094,0.17996315,122930.0,122920.0,0.38204496]
[1752478858305,0.17996315,122930.0,122920.0,0.52416496]
[1752478858491,0.17996315,122930.0,122920.0,0.30069785]
[1752478858720,0.17996315,122930.0,122920.0,0.44281785]
[1752478858897,0.17996315,122930.0,122920.0,0.30069785]
[1752478859243,0.17996315,122930.0,122920.0,0.44269785]
[1752478859443,0.17996315,122930.0,122920.0,0.44265785]
[1752478859877,0.17996315,122930.0,122920.0,0.44261785]
[1752478860107,0.17996315,122930.0,122920.0,0.44253785]
[1752478860982,0.17996315,122930.0,122920.0,0.44241785]
[1752478861412,0.17996315,122930.0,122920.0,0.44233785]
[1752478861624,0.17996315,122930.0,122920.0,0.45860846]
[1752478861837,0.17996315,122930.0,122920.0,0.45047322]
[1752478862056,0.16369421,122930.0,122920.0,0.44233785]
[1752478862479,0.16369421,122930.0,122920.0,0.30069785]
[1752478862683,0.59918335,122930.0,122920.0,0.44233785]
[1752478862897,0.59597335,122930.0,122920.0,0.44233785]
[1752478863104,0.42440121,122940.0,122930.0,0.17082878]
[1752478863335,0.57894887,122940.0,122930.0,0.18404428]
[1752478863545,0.57894887,122940.0,122930.0,0.32357885]
[1752478863750,0.57894887,122940.0,122930.0,0.44209794]
[1752478864003,0.57894887,122940.0,122930.0,0.62106137]
[1752478864208,0.57894887,122940.0,122930.0,0.4877958]
[1752478864418,0.4162671,122940.0,122930.0,0.64854462]
[1752478864637,0.59521597,122940.0,122930.0,0.31207265]
[1752478864849,1.01443801,122940.0,122930.0,0.00508072]
[1752478865108,0.58215887,122940.0,122930.0,0.14624072]
[1752478865312,1.01643801,122940.0,122930.0,0.14624072]
[1752478866378,1.01643801,122940.0,122930.0,0.00508072]
[1752478866550,0.18711257,122920.0,122910.0,0.00813596]
[1752478866731,0.17897773,122920.0,122910.0,0.41455665]
[1752478866927,0.1871131,122920.0,122910.0,0.41780665]
[1752478867132,0.17897773,122920.0,122910.0,0.43407812]
[1752478867356,0.18711303,122920.0,122910.0,0.43407812]
[1752478867640,0.18711303,122920.0,122910.0,0.42594249]
[1752478867860,0.18711303,122920.0,122910.0,0.09456425]
[1752478868098,0.60606189,122920.0,122910.0,0.00508111]
[1752478868328,0.60606189,122920.0,122910.0,0.14584111]
[1752478868560,0.60606189,122920.0,122910.0,0.00508111]
[1752478868784,0.60606189,122920.0,122910.0,0.14588145]
[1752478869016,0.48397088,122920.0,122910.0,0.00508145]
[1752478869234,0.51477088,122920.0,122910.0,0.14576145]
[1752478869451,0.51477088,122920.0,122910.0,0.14576169]
[1752478869674,0.51477088,122920.0,122910.0,0.00508169]
[1752478870110,0.65537088,122920.0,122910.0,0.00508169]
[1752478870762,0.85477088,122920.0,122910.0,0.00508169]
[1752478870982,1.29573076,122920.0,122910.0,1e-08]
[1752478871189,0.23265658,122910.0,122900.0,0.0001534]
[1752478871396,1.02419182,122910.0,122900.0,0.0001534]
[1752478871636,0.62713182,122910.0,122900.0,0.0001534]
[1752478871843,0.48923869,122870.0,122860.0,0.2957]
[1752478872015,0.48242033,122870.0,122860.0,0.43602]
[1752478872273,0.49055888,122870.0,122860.0,0.43602]
[1752478872476,0.49055888,122870.0,122860.0,0.2957]
[1752478872670,0.49055888,122870.0,122860.0,0.4359]
[1752478872881,0.49055888,122870.0,122860.0,0.2957]
[1752478873261,0.17092612,122860.0,122850.0,0.14012]
[1752478873476,0.17094003,122850.0,122840.0,0.30867223]
[1752478873763,0.87591504,122860.0,122840.0,0.19206631]
[1752478873997,0.18721938,122850.0,122840.0,0.0211129]
[1752478874203,0.17907984,122850.0,122840.0,0.15301223]
[1752478874406,0.17907984,122850.0,122840.0,0.1611529]
[1752478874576,0.1709399,122850.0,122840.0,0.34024744]
[1752478874808,0.19535938,122850.0,122840.0,0.33202691]
[1752478874994,0.01627928,122850.0,122840.0,0.35030791]
[1752478875207,0.01627716,122870.0,122860.0,0.00813934]
[1752478875441,0.04069518,122860.0,122850.0,0.17907996]
[1752478875643,0.17906539,122860.0,122850.0,0.13984]
[1752478875801,0.17906539,122860.0,122850.0,0.31078003]
[1752478876001,0.17906539,122860.0,122850.0,0.17094016]
[1752478876224,0.16278691,122860.0,122850.0,0.1398]
[1752478876434,0.01627815,122860.0,122850.0,0.18721957]
[1752478876629,0.17906506,122860.0,122850.0,0.32701957]
[1752478876793,0.17092618,122860.0,122850.0,0.31074003]
[1752478877000,0.17092618,122860.0,122850.0,0.3188797]
[1752478877200,0.17092618,122860.0,122850.0,0.32701957]
[1752478877485,0.17906526,122860.0,122850.0,0.33515924]
[1752478877695,0.17098208,122880.0,122870.0,0.16277366]
[1752478877907,0.01627662,122870.0,122860.0,0.17906473]
[1752478878081,0.0244147,122870.0,122860.0,0.17906473]
[1752478878233,0.20346552,122870.0,122860.0,0.31858539]
[1752478878433,0.19532744,122870.0,122860.0,0.32672447]
[1752478878646,0.18718923,122870.0,122860.0,0.32672473]
[1752478878839,0.17905082,122870.0,122860.0,0.32672473]
[1752478879050,0.18005082,122870.0,122860.0,0.34300275]
[1752478879256,0.18005095,122870.0,122860.0,0.13952]
[1752478879688,0.18005095,122870.0,122860.0,0.31044625]
[1752478879891,0.18005095,122870.0,122860.0,0.31858552]
[1752478880092,0.17191234,122870.0,122860.0,0.14765934]
[1752478880296,0.17191234,122870.0,122860.0,0.3267246]
[1752478880581,0.001,122870.0,122860.0,0.2880796]
[1752478880710,0.001,122870.0,122860.0,0.3201796]
[1752478881088,0.001,122870.0,122860.0,0.66056773]
[1752478881485,0.001,122870.0,122860.0,0.4895396]
[1752478881890,0.03254868,122890.0,122880.0,0.18717387]
[1752478882098,0.40813676,122890.0,122880.0,0.41902853]
[1752478882297,0.4244106,122890.0,122880.0,0.45002853]
[1752478882523,0.40813676,122890.0,122880.0,0.45002853]
[1752478882726,0.4,122890.0,122880.0,0.45002853]
[1752478883376,0.42441106,122890.0,122880.0,0.31090853]
[1752478883587,0.57902141,122890.0,122880.0,0.22355711]
[1752478883794,0.18002141,122890.0,122880.0,0.23169506]
[1752478883995,0.18002141,122890.0,122880.0,0.08459711]
[1752478884202,0.18002141,122890.0,122880.0,0.22343711]
[1752478884712,0.18002141,122890.0,122880.0,0.23157499]
[1752478884923,0.02541106,122890.0,122880.0,0.41874852]
[1752478885125,0.18815823,122890.0,122880.0,0.26363322]
[1752478885342,0.19629552,122890.0,122880.0,0.40235322]
[1752478885586,0.20443287,122890.0,122880.0,0.41049084]
[1752478885793,0.19629605,122890.0,122880.0,0.4104909]
[1752478885993,0.19629605,122890.0,122880.0,0.40235322]
[1752478886247,0.19620791,122890.0,122880.0,0.40235322]
[1752478886480,0.18815903,122890.0,122880.0,0.40235322]
[1752478886654,0.18815903,122890.0,122880.0,0.4104909]
[1752478886891,0.18715903,122890.0,122880.0,0.4104909]
[1752478887106,0.41593643,122900.0,122890.0,0.17088419]
[1752478887314,0.59494322,122900.0,122890.0,0.17413439]
[1752478887530,0.59494322,122900.0,122890.0,0.32071148]
[1752478887734,0.58680699,122900.0,122890.0,0.30928446]
[1752478887941,0.58680699,122900.0,122880.0,0.24735752]
[1752478887942,0.17088439,122890.0,122880.0,0.24735752]
[1752478888152,0.17090274,122880.0,122860.0,0.52353691]
[1752478888329,0.02441457,122870.0,122860.0,0.57564026]
[1752478888569,0.03255365,122870.0,122860.0,0.71400026]
[1752478888793,0.02441497,122870.0,122860.0,0.57564026]
[1752478889008,0.01627662,122870.0,122860.0,0.71400026]
[1752478889207,0.00813762,122880.0,122870.0,0.17091227]
[1752478889415,0.01627504,122880.0,122870.0,0.410106]
[1752478889853,0.01627504,122880.0,122870.0,0.40188793]
[1752478889854,0.19531161,122880.0,122870.0,0.40188793]
[1752478890078,0.17903631,122880.0,122870.0,0.08134711]
[1752478890280,0.17903631,122880.0,122870.0,0.21950711]
[1752478890488,0.17903631,122880.0,122870.0,0.22050711]
[1752478890734,0.17903631,122880.0,122870.0,0.08234711]
[1752478890941,0.17903631,122880.0,122870.0,0.16377366]
[1752478891142,0.17903631,122880.0,122870.0,0.31813082]
[1752478891568,0.17903631,122880.0,122870.0,0.13908]
[1752478892001,0.48922444,122880.0,122870.0,0.001]
[1752478892214,0.49216444,122880.0,122870.0,0.13896]
[1752478892417,0.17903631,122880.0,122870.0,0.00913855]
[1752478892647,0.17903631,122880.0,122870.0,0.00913868]
[1752478892860,0.01627768,122860.0,122850.0,0.5366399]
[1752478893064,0.59534294,122860.0,122850.0,0.7755495]